fUSD/lending_fUSD_20250720
["ID","MTS","AMOUNT","RATE_DAILY","PERIOD"]
[373438590,1753011064716,-480.0,0.00019178,2]
[373438591,1753011064725,-480.0,0.00019178,2]
[373438592,1753011064734,-465.04187787,0.00019178,2]
[373438593,1753011064744,-480.0,0.00019178,2]
[373438594,1753011064753,-151.0,0.00019178,2]
[373438595,1753011064762,-930.19,0.00019178,2]
[373438596,1753011064772,-480.0,0.00019178,2]
[373438597,1753011064782,-229.629651,0.00019178,2]
[373438598,1753011064791,-485.31418359,0.00019178,2]
[373438599,1753011064800,-480.0,0.00019178,2]
[373438600,1753011064810,-480.0,0.00019178,2]
[373438601,1753011064819,-480.0,0.00019178,2]
[373438602,1753011064828,-480.0,0.00019178,2]
[373438603,1753011064837,-480.0,0.00019178,2]
[373438604,1753011064846,-2827.55,0.00019178,2]
[373438605,1753011064855,-480.0,0.00019178,2]
[373438606,1753011064865,-464.71662458,0.00019178,2]
[373438607,1753011064875,-1000.0,0.00019178,2]
[373438608,1753011064885,-480.0,0.00019178,2]
[373438609,1753011064895,-460.50138065,0.00019178,2]
[373438610,1753011064904,-924.33,0.00019178,2]
[373438611,1753011064913,-480.0,0.00019178,2]
[373438612,1753011064922,-480.0,0.00019178,2]
[373438613,1753011064931,-462.45658088,0.00019178,2]
[373438614,1753011064941,-480.0,0.00019178,2]
[373438615,1753011064950,-480.0,0.00019178,2]
[373438616,1753011064960,-480.0,0.00019178,2]
[373438617,1753011064969,-480.0,0.00019178,2]
[373438618,1753011064979,-680.95,0.00019178,2]
[373438619,1753011064988,-680.95,0.00019178,2]
[373438620,1753011064997,-680.95,0.00019178,2]
[373438621,1753011065008,-680.95,0.00019178,2]
[373438622,1753011065017,-480.0,0.00019178,2]
[373438623,1753011065026,-2233.72,0.00019178,2]
[373438624,1753011065036,-680.95,0.00019178,2]
[373438625,1753011065045,-680.95,0.00019178,2]
[373438626,1753011065054,-680.95,0.00019178,2]
[373438627,1753011065063,-680.95,0.00019178,2]
[373438628,1753011065073,-680.95,0.00019178,2]
[373438629,1753011065082,-680.95,0.00019178,2]
[373438630,1753011065091,-612.7119882,0.00019178,2]
[373438631,1753011065100,-680.95,0.00019178,2]
[373438632,1753011065110,-480.0,0.00019178,2]
[373438633,1753011065119,-480.0,0.00019178,2]
[373438634,1753011065128,-1215.82,0.00019178,2]
[373438635,1753011065138,-480.0,0.00019178,2]
[373438636,1753011065147,-460.96406724,0.00019178,2]
[373438637,1753011065156,-480.0,0.00019178,2]
[373438638,1753011065166,-480.0,0.00019178,2]
[373438639,1753011065175,-480.0,0.00019178,2]
[373438640,1753011065184,-480.0,0.00019178,2]
[373438641,1753011065194,-518.37,0.00019178,2]
[373438642,1753011065203,-480.0,0.00019178,2]
[373438643,1753011065213,-840.02,0.00019178,2]
[373438644,1753011065222,-481.63814747,0.00019178,2]
[373438645,1753011065232,-480.0,0.00019178,2]
[373438646,1753011065241,-1783.35,0.00019178,2]
[373438647,1753011065251,-1567.13,0.00019178,2]
[373438648,1753011065260,-1309.18,0.00019178,2]
[373438649,1753011065269,-482.75568328,0.00019178,2]
[373438650,1753011065279,-480.0,0.00019178,2]
[373438651,1753011065289,-151.0,0.00019178,2]
[373438652,1753011065299,-151.0,0.00019178,2]
[373438653,1753011065308,-155.999097,0.00019178,2]
[373438654,1753011065318,-480.0,0.00019178,2]
[373438655,1753011065327,-480.90634308,0.00019178,2]
[373438656,1753011065336,-480.0,0.00019178,2]
[373438657,1753011065346,-486.64116333,0.00019178,2]
[373438658,1753011065355,-482.10115279,0.00019178,2]
[373438659,1753011065364,-480.0,0.00019178,2]
[373438660,1753011065374,-480.0,0.00019178,2]
[373438661,1753011065383,-480.0,0.00019178,2]
[373438662,1753011065393,-801.13,0.00019178,2]
[373438663,1753011065402,-957.2,0.00019178,2]
[373438664,1753011065412,-480.0,0.00019178,2]
[373438665,1753011065421,-480.0,0.00019178,2]
[373438666,1753011065431,-484.08126749,0.00019178,2]
[373438667,1753011065441,-1586.77,0.00019178,2]
[373438668,1753011065450,-1481.48,0.00019178,2]
[373438669,1753011065459,-480.0,0.00019178,2]
[373438670,1753011065469,-480.0,0.00019178,2]
[373438671,1753011065478,-480.0,0.00019178,2]
[373438672,1753011065487,-480.0,0.00019178,2]
[373438673,1753011065497,-480.0,0.00019178,2]
[373438674,1753011065506,-480.0,0.00019178,2]
[373438675,1753011065516,-462.60088091,0.00019178,2]
[373438676,1753011065525,-480.0,0.00019178,2]
[373438677,1753011065535,-463.67228027,0.00019178,2]
[373438678,1753011065546,-1275.62,0.00019178,2]
[373438679,1753011065558,-480.0,0.00019178,2]
[373438680,1753011065567,-480.0,0.00019178,2]
[373438681,1753011065576,-611.74,0.00019178,2]
[373438682,1753011065586,-480.0,0.00019178,2]
[373438683,1753011065595,-1358.77,0.00019178,2]
[373438684,1753011065605,-1861.85,0.00019178,2]
[373438685,1753011065614,-151.0,0.00019178,2]
[373438686,1753011065623,-151.0,0.00019178,2]
[373438687,1753011065633,-480.0,0.00019178,2]
[373438688,1753011065643,-151.0,0.00019178,2]
[373438689,1753011065653,-1403.73,0.00019178,2]
[373438690,1753011065662,-151.0,0.00019178,2]
[373438691,1753011065671,-151.0,0.00019178,2]
[373438692,1753011065681,-151.0,0.00019178,2]
[373438693,1753011065693,-461.26040417,0.00019178,2]
[373438694,1753011065702,-781.54,0.00019178,2]
[373438695,1753011065712,-480.0,0.00019178,2]
[373438696,1753011065721,-1192.02,0.00019178,2]
[373438697,1753011065731,-480.0,0.00019178,2]
[373438698,1753011065740,-461.72618164,0.00019178,2]
[373438699,1753011065750,-151.0,0.00019178,2]
[373438700,1753011065759,-151.0,0.00019178,2]
[373438701,1753011065769,-480.0,0.00019178,2]
[373438702,1753011065778,-480.0,0.00019178,2]
[373438703,1753011065787,-480.0,0.00019178,2]
[373438704,1753011065797,-2950.83,0.00019178,2]
[373438705,1753011065806,-2057.18,0.00019178,2]
[373438706,1753011065815,-151.0,0.00019178,2]
[373438707,1753011065824,-480.0,0.00019178,2]
[373438708,1753011065833,-495.50409512,0.00019178,2]
[373438709,1753011065843,-480.0,0.00019178,2]
[373438710,1753011065852,-1008.73,0.00019178,2]
[373438711,1753011065861,-748.92,0.00019178,2]
[373438712,1753011065871,-3129.02,0.00019178,2]
[373438713,1753011065881,-480.0,0.00019178,2]
[373438714,1753011065891,-480.0,0.00019178,2]
[373438715,1753011065901,-480.0,0.00019178,2]
[373438716,1753011065911,-481.11357833,0.00019178,2]
[373438717,1753011065920,-480.0,0.00019178,2]
[373438718,1753011065930,-480.0,0.00019178,2]
[373438719,1753011065940,-620.36843833,0.00019178,2]
[373438720,1753011065949,-460.35056793,0.00019178,2]
[373438721,1753011065959,-259.60289443,0.00019178,2]
[373438722,1753011065969,-480.0,0.00019178,2]
[373438723,1753011065978,-451.619249,0.00019178,2]
[373438724,1753011065988,-480.0,0.00019178,2]
[373438725,1753011065997,-516.67,0.00019178,2]
[373438726,1753011066006,-1845.6,0.00019178,2]
[373438727,1753011066016,-480.0,0.00019178,2]
[373438728,1753011066025,-5987.86,0.00019178,2]
[373438729,1753011066035,-533.22,0.00019178,2]
[373438730,1753011066044,-480.0,0.00019178,2]
[373438731,1753011066053,-464.40648839,0.00019178,2]
[373438732,1753011066062,-893.08,0.00019178,2]
[373438733,1753011066071,-166.23255424,0.00019178,2]
[373438734,1753011066082,-480.0,0.00019178,2]
[373438735,1753011066091,-462.66693813,0.00019178,2]
[373438736,1753011066100,-480.0,0.00019178,2]
[373438737,1753011066109,-1136.47,0.00019178,2]
[373438738,1753011066118,-482.60754764,0.00019178,2]
[373438739,1753011066127,-480.0,0.00019178,2]
[373438740,1753011066136,-417.5905975,0.00019178,2]
[373438741,1753011066147,-480.0,0.00019178,2]
[373438742,1753011066156,-615.85,0.00019178,2]
[373438743,1753011066166,-907.75,0.00019178,2]
[373438744,1753011066175,-9631.09,0.00019178,2]
[373438745,1753011066184,-785.12,0.00019178,2]
[373438746,1753011066195,-480.0,0.00019178,2]
[373438747,1753011066204,-1697.51,0.00019178,2]
[373438748,1753011066213,-9631.09,0.00019178,2]
[373438749,1753011066222,-482.30846369,0.00019178,2]
[373438750,1753011066232,-490.54,0.00019178,2]
[373438751,1753011066241,-2164.13,0.00019178,2]
[373438752,1753011066251,-480.0,0.00019178,2]
[373438753,1753011066260,-1360.2,0.00019178,2]
[373438754,1753011066269,-480.0,0.00019178,2]
[373438755,1753011066278,-480.0,0.00019178,2]
[373438756,1753011066288,-480.0,0.00019178,2]
[373438757,1753011066299,-159.396807,0.00019178,2]
[373438758,1753011066309,-174.272482,0.00019178,2]
[373438759,1753011066319,-480.0,0.00019178,2]
[373438760,1753011066329,-482.8262737,0.00019178,2]
[373438761,1753011066338,-480.0,0.00019178,2]
[373438762,1753011066347,-480.0,0.00019178,2]
[373438763,1753011066356,-180.279926,0.00019178,2]
[373438764,1753011066365,-480.0,0.00019178,2]
[373438765,1753011066375,-480.0,0.00019178,2]
[373438766,1753011066384,-1645.92,0.00019178,2]
[373438767,1753011066393,-480.0,0.00019178,2]
[373438768,1753011066402,-3140.034226,0.00019178,2]
[373438769,1753011066413,-3236.744835,0.00019178,2]
[373438770,1753011066422,-1996.55,0.00019178,2]
[373438771,1753011066431,-480.0,0.00019178,2]
[373438772,1753011066619,-480.0,0.00019178,2]
[373438773,1753011066633,-480.0,0.00019178,2]
[373438774,1753011066643,-719.77,0.00019178,2]
[373438775,1753011066653,-480.0,0.00019178,2]
[373438776,1753011066663,-397.23042758,0.00019178,2]
[373438777,1753011066672,-480.0,0.00019178,2]
[373438778,1753011066682,-480.0,0.00019178,2]
[373438779,1753011066692,-480.0,0.00019178,2]
[373438780,1753011066702,-1873.61,0.00019178,2]
[373438781,1753011066712,-480.0,0.00019178,2]
[373438782,1753011066721,-5248.08,0.00019178,2]
[373438783,1753011066731,-480.0,0.00019178,2]
[373438784,1753011066741,-480.0,0.00019178,2]
[373438785,1753011066750,-480.0,0.00019178,2]
[373438786,1753011066760,-1042.39,0.00019178,2]
[373438787,1753011066769,-480.0,0.00019178,2]
[373438788,1753011066779,-158.49793153,0.00019178,2]
[373438789,1753011066790,-1735.33,0.00019178,2]
[373438790,1753011066800,-480.0,0.00019178,2]
[373438791,1753011066810,-1385.59,0.00019178,2]
[373438792,1753011066821,-480.0,0.00019178,2]
[373438793,1753011066832,-1263.58,0.00019178,2]
[373438794,1753011066841,-480.0,0.00019178,2]
[373438795,1753011066852,-1177.63,0.00019178,2]
[373438796,1753011066862,-462.27309129,0.00019178,2]
[373438797,1753011066872,-920.5,0.00019178,2]
[373438798,1753011066882,-461.22554164,0.00019178,2]
[373438799,1753011066892,-480.0,0.00019178,2]
[373438800,1753011066902,-1598.62,0.00019178,2]
[373438801,1753011066912,-480.0,0.00019178,2]
[373438802,1753011066921,-480.0,0.00019178,2]
[373438803,1753011066931,-480.0,0.00019178,2]
[373438804,1753011066944,-1142.35,0.00019178,2]
[373438805,1753011066953,-311.29797295,0.00019178,2]
[373438806,1753011066965,-480.0,0.00019178,2]
[373438807,1753011066977,-1618.53,0.00019178,2]
[373438808,1753011066987,-480.0,0.00019178,2]
[373438809,1753011066996,-8501.27,0.00019178,2]
[373438810,1753011067006,-1413.35,0.00019178,2]
[373438811,1753011067017,-480.0,0.00019178,2]
[373438812,1753011067026,-480.0,0.00019178,2]
[373438813,1753011067035,-483.1912338,0.00019178,2]
[373438814,1753011067044,-480.0,0.00019178,2]
[373438815,1753011067053,-884.29,0.00019178,2]
[373438816,1753011067064,-483.34316733,0.00019178,2]
[373438817,1753011067075,-480.0,0.00019178,2]
[373438818,1753011067084,-1337.17,0.00019178,2]
[373438819,1753011067095,-2234.73,0.00019178,2]
[373438820,1753011067104,-461.88525671,0.00019178,2]
[373438821,1753011067114,-480.0,0.00019178,2]
[373438822,1753011067124,-480.0,0.00019178,2]
[373438823,1753011067133,-1000.05,0.00019178,2]
[373438824,1753011067142,-955.29,0.00019178,2]
[373438825,1753011067151,-481.52618935,0.00019178,2]
[373438826,1753011067161,-3214.01,0.00019178,2]
[373438827,1753011067170,-480.0,0.00019178,2]
[373438828,1753011067179,-480.0,0.00019178,2]
[373438829,1753011067192,-480.0,0.00019178,2]
[373438830,1753011067202,-480.0,0.00019178,2]
[373438831,1753011067211,-183.57512197,0.00019178,2]
[373438832,1753011067220,-531.25,0.00019178,2]
[373438833,1753011067230,-1179.67,0.00019178,2]
[373438834,1753011067239,-480.0,0.00019178,2]
[373438835,1753011067249,-463.12065391,0.00019178,2]
[373438836,1753011067258,-480.0,0.00019178,2]
[373438837,1753011067267,-480.0,0.00019178,2]
[373438838,1753011067277,-480.0,0.00019178,2]
[373438839,1753011067286,-849.36,0.00019178,2]
[373438840,1753011067295,-2421.15,0.00019178,2]
[373438841,1753011067304,-480.0,0.00019178,2]
[373438842,1753011067313,-803.62,0.00019178,2]
[373438843,1753011067322,-480.0,0.00019178,2]
[373438844,1753011067331,-5503.78,0.00019178,2]
[373438845,1753011067340,-480.0,0.00019178,2]
[373438846,1753011067349,-480.0,0.00019178,2]
[373438847,1753011067359,-423.83972836,0.00019178,2]
[373438848,1753011067368,-1997.59,0.00019178,2]
[373438849,1753011067377,-1190.61,0.00019178,2]
[373438850,1753011067386,-592.87,0.00019178,2]
[373438851,1753011067395,-480.71002206,0.00019178,2]
[373438852,1753011067405,-480.0,0.00019178,2]
[373438853,1753011067414,-1319.52,0.00019178,2]
[373438854,1753011067423,-2699.1187,0.00019178,2]
[373438855,1753011067432,-598.59,0.00019178,2]
[373438856,1753011067445,-480.0,0.00019178,2]
[373438857,1753011067454,-480.0,0.00019178,2]
[373438858,1753011067463,-480.0,0.00019178,2]
[373438859,1753011067472,-480.0,0.00019178,2]
[373438860,1753011067481,-480.0,0.00019178,2]
[373438861,1753011067490,-480.0,0.00019178,2]
[373438862,1753011067500,-1014.74,0.00019178,2]
[373438863,1753011067509,-1186.9,0.00019178,2]
[373438864,1753011067518,-1487.81,0.00019178,2]
[373438865,1753011067528,-480.0,0.00019178,2]
[373438866,1753011067537,-480.0,0.00019178,2]
[373438867,1753011067546,-2679.58,0.00019178,2]
[373438868,1753011067559,-480.0,0.00019178,2]
[373438869,1753011067568,-480.0,0.00019178,2]
[373438870,1753011067577,-480.0,0.00019178,2]
[373438871,1753011067586,-738.69,0.00019178,2]
[373438872,1753011067595,-1907.43,0.00019178,2]
[373438873,1753011067605,-480.0,0.00019178,2]
[373438874,1753011067614,-480.0,0.00019178,2]
[373438875,1753011067624,-480.0,0.00019178,2]
[373438876,1753011067633,-2033.76,0.00019178,2]
[373438877,1753011067642,-715.73,0.00019178,2]
[373438878,1753011067651,-481.83721068,0.00019178,2]
[373438879,1753011067661,-1776.73,0.00019178,2]
[373438880,1753011067670,-973.83,0.00019178,2]
[373438881,1753011067679,-480.0,0.00019178,2]
[373438882,1753011067690,-1981.68,0.00019178,2]
[373438883,1753011067699,-151.0,0.00019178,2]
[373438884,1753011067708,-151.0,0.00019178,2]
[373438885,1753011067718,-480.0,0.00019178,2]
[373438886,1753011067728,-151.0,0.00019178,2]
[373438887,1753011067737,-480.0,0.00019178,2]
[373438888,1753011067747,-151.0,0.00019178,2]
[373438889,1753011067756,-151.0,0.00019178,2]
[373438890,1753011067766,-1028.59,0.00019178,2]
[373438891,1753011067775,-151.0,0.00019178,2]
[373438892,1753011067784,-150.0,0.00019178,2]
[373438893,1753011067794,-480.0,0.00019178,2]
[373438894,1753011067803,-462.4291024,0.00019178,2]
[373438895,1753011067812,-1160.05,0.00019178,2]
[373438896,1753011067821,-1501.12,0.00019178,2]
[373438897,1753011067831,-1501.12,0.00019178,2]
[373438898,1753011067841,-1501.12,0.00019178,2]
[373438899,1753011067850,-1501.12,0.00019178,2]
[373438900,1753011067859,-480.0,0.00019178,2]
[373438901,1753011067869,-1501.12,0.00019178,2]
[373438902,1753011067878,-1501.12,0.00019178,2]
[373438903,1753011067887,-1501.12,0.00019178,2]
[373438904,1753011067896,-1309.37,0.00019178,2]
[373438905,1753011067906,-1501.12,0.00019178,2]
[373438906,1753011067915,-480.0,0.00019178,2]
[373438907,1753011067925,-1501.12,0.00019178,2]
[373438908,1753011067934,-1501.12,0.00019178,2]
[373438909,1753011067947,-480.0,0.00019178,2]
[373438910,1753011067957,-1501.12,0.00019178,2]
[373438911,1753011067966,-1501.12,0.00019178,2]
[373438912,1753011067975,-742.714057,0.00019178,2]
[373438913,1753011067987,-1501.12,0.00019178,2]
[373438914,1753011067997,-480.0,0.00019178,2]
[373438915,1753011068009,-742.714057,0.00019178,2]
[373438916,1753011068018,-480.0,0.00019178,2]
[373438917,1753011068027,-461.38714287,0.00019178,2]
[373438918,1753011068036,-742.714057,0.00019178,2]
[373438919,1753011068046,-742.714057,0.00019178,2]
[373438920,1753011068055,-742.714057,0.00019178,2]
[373438921,1753011068064,-480.0,0.00019178,2]
[373438922,1753011068074,-742.714057,0.00019178,2]
[373438923,1753011068084,-2504.81,0.00019178,2]
[373438924,1753011068093,-3990.99,0.00019178,2]
[373438925,1753011068103,-708.04,0.00019178,2]
[373438926,1753011068113,-2048.72,0.00019178,2]
[373438927,1753011068122,-2386.46,0.00019178,2]
[373438928,1753011068132,-505.81,0.00019178,2]
[373438929,1753011068142,-480.0,0.00019178,2]
[373438930,1753011068153,-480.0,0.00019178,2]
[373438931,1753011068163,-742.714057,0.00019178,2]
[373438932,1753011068172,-742.714057,0.00019178,2]
[373438933,1753011068182,-480.0,0.00019178,2]
[373438934,1753011068195,-480.0,0.00019178,2]
[373438935,1753011068204,-742.714057,0.00019178,2]
[373438936,1753011068213,-742.714057,0.00019178,2]
[373438937,1753011068222,-480.0,0.00019178,2]
[373438938,1753011068231,-480.0,0.00019178,2]
[373438939,1753011068239,-742.714057,0.00019178,2]
[373438940,1753011068249,-742.714057,0.00019178,2]
[373438941,1753011068258,-7361.82,0.00019178,2]
[373438942,1753011068268,-1026.43,0.00019178,2]
[373438943,1753011068279,-480.0,0.00019178,2]
[373438944,1753011068289,-1619.09,0.00019178,2]
[373438945,1753011068301,-480.0,0.00019178,2]
[373438946,1753011068311,-480.0,0.00019178,2]
[373438947,1753011068321,-1111.56,0.00019178,2]
[373438948,1753011068331,-819.64,0.00019178,2]
[373438949,1753011068340,-480.0,0.00019178,2]
[373438950,1753011068349,-480.0,0.00019178,2]
[373438951,1753011068358,-4533.45,0.00019178,2]
[373438952,1753011068367,-3523.4,0.00019178,2]
[373438953,1753011068376,-1615.31,0.00019178,2]
[373438954,1753011068385,-2733.43,0.00019178,2]
[373438955,1753011068394,-480.0,0.00019178,2]
[373438956,1753011068403,-151.0,0.00019178,2]
[373438957,1753011068412,-480.0,0.00019178,2]
[373438958,1753011068421,-480.0,0.00019178,2]
[373438959,1753011068431,-1907.58,0.00019178,2]
[373438960,1753011068444,-184.107189,0.00019178,2]
[373438961,1753011068453,-480.0,0.00019178,2]
[373438962,1753011068462,-480.0,0.00019178,2]
[373438963,1753011068472,-364.98805349,0.00019178,2]
[373438964,1753011068482,-480.0,0.00019178,2]
[373438965,1753011068491,-480.0,0.00019178,2]
[373438966,1753011068500,-1917.96,0.00019178,2]
[373438967,1753011068509,-151.0,0.00019178,2]
[373438968,1753011068519,-151.0,0.00019178,2]
[373438969,1753011068528,-2125.26,0.00019178,2]
[373438970,1753011068538,-480.0,0.00019178,2]
[373438971,1753011068551,-1103.65,0.00019178,2]
[373438972,1753011068561,-151.0,0.00019178,2]
[373438973,1753011068571,-481.94755091,0.00019178,2]
[373438974,1753011068580,-480.0,0.00019178,2]
[373438975,1753011068590,-151.0,0.00019178,2]
[373438976,1753011068600,-1256.09,0.00019178,2]
[373438977,1753011068609,-480.0,0.00019178,2]
[373438978,1753011068619,-480.0,0.00019178,2]
[373438979,1753011068629,-480.0,0.00019178,2]
[373438980,1753011068639,-480.0,0.00019178,2]
[373438981,1753011068648,-4142.49,0.00019178,2]
[373438982,1753011068658,-480.0,0.00019178,2]
[373438983,1753011068667,-480.0,0.00019178,2]
[373438984,1753011068676,-480.0,0.00019178,2]
[373438985,1753011068685,-480.0,0.00019178,2]
[373438986,1753011068698,-480.0,0.00019178,2]
[373438987,1753011068707,-1118.99,0.00019178,2]
[373438988,1753011068717,-2271.0,0.00019178,2]
[373438989,1753011068726,-480.0,0.00019178,2]
[373438990,1753011068736,-616.40632566,0.00019178,2]
[373438991,1753011068745,-480.0,0.00019178,2]
[373438992,1753011068754,-151.0,0.00019178,2]
[373438993,1753011068764,-151.0,0.00019178,2]
[373438994,1753011068773,-151.0,0.00019178,2]
[373438995,1753011068782,-282.623882,0.00019178,2]
[373438996,1753011068791,-151.0,0.00019178,2]
[373438997,1753011068800,-282.623882,0.00019178,2]
[373438998,1753011068809,-151.0,0.00019178,2]
[373438999,1753011068818,-282.623882,0.00019178,2]
[373439000,1753011068827,-315.38093387,0.00019178,2]
[373439001,1753011068836,-282.623882,0.00019178,2]
[373439002,1753011068845,-282.623882,0.00019178,2]
[373439003,1753011068855,-480.0,0.00019178,2]
[373439004,1753011068870,-2990.26,0.00019178,2]
[373439005,1753011068879,-1466.57,0.00019178,2]
[373439006,1753011068888,-282.623882,0.00019178,2]
[373439007,1753011068898,-480.0,0.00019178,2]
[373439008,1753011068907,-480.0,0.00019178,2]
[373439009,1753011068916,-151.0,0.00019178,2]
[373439010,1753011068925,-480.0,0.00019178,2]
[373439011,1753011068934,-244.493749,0.00019178,2]
[373439012,1753011068945,-480.0,0.00019178,2]
[373439013,1753011068955,-2530.35,0.00019178,2]
[373439014,1753011068964,-282.623882,0.00019178,2]
[373439015,1753011068976,-480.0,0.00019178,2]
[373439016,1753011068985,-282.623882,0.00019178,2]
[373439017,1753011068994,-480.0,0.00019178,2]
[373439018,1753011069005,-495.03,0.00019178,2]
[373439019,1753011069015,-282.623882,0.00019178,2]
[373439020,1753011069024,-282.623882,0.00019178,2]
[373439021,1753011069034,-282.623882,0.00019178,2]
[373439022,1753011069043,-282.623879,0.00019178,2]
[373439023,1753011069052,-460.0,0.00019178,2]
[373439024,1753011069061,-480.0,0.00019178,2]
[373439025,1753011069070,-2020.07,0.00019178,2]
[373439026,1753011069079,-480.0,0.00019178,2]
[373439027,1753011069088,-1726.25,0.00019178,2]
[373439028,1753011069097,-480.0,0.00019178,2]
[373439029,1753011069106,-1231.07,0.00019178,2]
[373439030,1753011069115,-575.76598049,0.00019178,2]
[373439031,1753011069125,-523.56,0.00019178,2]
[373439032,1753011069134,-480.0,0.00019178,2]
[373439033,1753011069143,-384.00660418,0.00019178,2]
[373439034,1753011069317,-597.0,0.00019178,2]
[373439035,1753011069327,-380.0,0.00019178,2]
[373439036,1753011069337,-1801.81,0.00019178,2]
[373439037,1753011069347,-480.0,0.00019178,2]
[373439038,1753011069356,-480.0,0.00019178,2]
[373439039,1753011069366,-1691.73,0.00019178,2]
[373439040,1753011069375,-481.88879858,0.00019178,2]
[373439041,1753011069384,-749.26,0.00019178,2]
[373439042,1753011069393,-488.50979189,0.00019178,2]
[373439043,1753011069402,-463.75597399,0.00019178,2]
[373439044,1753011069411,-485.36190644,0.00019178,2]
[373439045,1753011069421,-480.0,0.00019178,2]
[373439046,1753011069430,-461.65485461,0.00019178,2]
[373439047,1753011069440,-480.0,0.00019178,2]
[373439048,1753011069449,-480.0,0.00019178,2]
[373439049,1753011069458,-2565.46,0.00019178,2]
[373439050,1753011069468,-573.3,0.00019178,2]
[373439051,1753011069477,-483.95434753,0.00019178,2]
[373439052,1753011069487,-3267.57,0.00019178,2]
[373439053,1753011069496,-480.0,0.00019178,2]
[373439054,1753011069505,-480.0,0.00019178,2]
[373439055,1753011069515,-480.0,0.00019178,2]
[373439056,1753011069524,-1788.5,0.00019178,2]
[373439057,1753011069534,-480.0,0.00019178,2]
[373439058,1753011069549,-480.0,0.00019178,2]
[373439059,1753011069559,-480.0,0.00019178,2]
[373439060,1753011069569,-480.0,0.00019178,2]
[373439061,1753011069578,-1588.16,0.00019178,2]
[373439062,1753011069590,-480.0,0.00019178,2]
[373439063,1753011069600,-480.0,0.00019178,2]
[373439064,1753011069609,-952.9,0.00019178,2]
[373439065,1753011069620,-2099.4,0.00019178,2]
[373439066,1753011069629,-480.0,0.00019178,2]
[373439067,1753011069639,-480.0,0.00019178,2]
[373439068,1753011069650,-500.0,0.00019178,2]
[373439069,1753011069660,-480.0,0.00019178,2]
[373439070,1753011069670,-482.40167382,0.00019178,2]
[373439071,1753011069679,-500.0,0.00019178,2]
[373439072,1753011069688,-6900.0,0.00019178,2]
[373439073,1753011069698,-500.0,0.00019178,2]
[373439074,1753011069707,-500.0,0.00019178,2]
[373439075,1753011069717,-480.0,0.00019178,2]
[373439076,1753011069727,-1000.07,0.00019178,2]
[373439077,1753011069737,-392.63508741,0.00019178,2]
[373439078,1753011069746,-500.0,0.00019178,2]
[373439079,1753011069755,-500.0,0.00019178,2]
[373439080,1753011069764,-483.43491057,0.00019178,2]
[373439081,1753011069774,-482.26369643,0.00019178,2]
[373439082,1753011069783,-480.0,0.00019178,2]
[373439083,1753011069792,-480.0,0.00019178,2]
[373439084,1753011069801,-464.45752189,0.00019178,2]
[373439085,1753011069810,-480.0,0.00019178,2]
[373439086,1753011069820,-480.19199403,0.00019178,2]
[373439087,1753011069829,-480.0,0.00019178,2]
[373439088,1753011069838,-480.0,0.00019178,2]
[373439089,1753011069848,-652.84,0.00019178,2]